fUSD/lending_fUSD_20240613
["ID","MTS","AMOUNT","RATE_DAILY","PERIOD"]
[329399653,1718320246098,-1128.66166438,0.00014,2]
[329399654,1718320246118,-1299.7799031,0.00014,2]
[329399655,1718320246156,-1385.1838,0.00014,2]
[329399656,1718320246178,-10334.49103469,0.00014,2]
[329399657,1718320246190,-1535.40135154,0.00014,2]
[329399658,1718320246206,-968.85757747,0.00014,2]
[329399659,1718320246236,-856.11111547,0.00014,2]
[329399660,1718320246254,-1372.69354787,0.00014,2]
[329399661,1718320246267,-22271.34932325,0.00014,2]
[329399662,1718320246682,-1523.51395288,0.00014,2]
[329399663,1718320246700,-537.16417105,0.00014,2]
[329399664,1718320246714,-2759.5004898,0.00014,2]
[329399665,1718320246732,-34130.49295262,0.00014,2]
[329399666,1718320246786,-62427.8776043,0.00014,2]
[329399675,1718320247728,-1483.51991344,0.00014,2]
[329399676,1718320247744,-2080.67323873,0.00014,2]
[329399677,1718320247772,-709904.61341165,0.00014,2]
[329399678,1718320247786,-2453.21041,0.00014,2]
[329399679,1718320247800,-40620.24348661,0.00014,2]
[329399680,1718320247827,-272.61289138,0.00014,2]
[329399681,1718320247840,-4818.84609131,0.00014,2]
[329399682,1718320247852,-477.28248686,0.00014064,2]
[329399683,1718320247891,-499.99,0.00014064,2]
[329399684,1718320247920,-150.0,0.00014164,2]
[329399685,1718320247931,-52926.04057871,0.00015,2]
[329399686,1718320247948,-477.28248684,0.00015504,2]
[329399687,1718320247980,-150.527,0.00016294,2]
[329399688,1718320247994,-150.0,0.00016294,2]
[329399689,1718320248023,-252.946,0.00016294,2]
[329399690,1718320248047,-165.619,0.00016294,2]
[329399691,1718320248080,-150.641,0.00016294,2]
[329399692,1718320248094,-150.0,0.00016294,2]
[329399693,1718320248120,-150.467,0.00016294,2]
[329399694,1718320248134,-150.844,0.00016294,2]
[329399695,1718320248165,-168.639,0.00016294,2]
[329399696,1718320248177,-247.815,0.00016294,2]
[329399697,1718320248192,-151.273,0.00016294,2]
[329399698,1718320248205,-546.0,0.00016294,2]
[329399699,1718320248248,-3176.0,0.00016294,2]
[329399700,1718320248315,-4747.757,0.00016294,2]
[329399701,1718320248349,-38070.0,0.00016294,2]
[329399702,1718320248372,-4121.593,0.00016294,2]
[329399703,1718320248409,-194.539,0.00016294,2]
[329399704,1718320248430,-1369.0,0.00016294,2]
[329399705,1718320248456,-1066.0,0.00016294,2]
[329399706,1718320248468,-570.72379164,0.00016427,2]
[329399707,1718320248486,-179.96,0.00016712,2]
[329399708,1718320248498,-477.28248684,0.00016943,2]
[329399709,1718320248537,-463.07,0.00017278,2]
[329399710,1718320248640,-344.12554842,0.00017386,2]
[329399711,1718320248659,-174.42184083,0.000179,2]
[329399712,1718320248760,-516.0,0.00017955,2]
[329399713,1718320248778,-477.28248684,0.00018383,2]
[329399714,1718320248804,-620.0,0.000188,2]
[329399715,1718320248830,-297.78,0.00018907,2]
[329399716,1718320248861,-250.0,0.0001893,2]
[329399717,1718320248896,-570.72379164,0.00018955,2]
[329399718,1718320248909,-2453.21042,0.00019,2]
[329399719,1718320248919,-885.21,0.00019046,2]
[329399720,1718320248936,-237.71,0.00019132,2]
[329399721,1718320248959,-500.0,0.00019178,2]
[329399722,1718320248995,-553.96791529,0.00019178,2]
[329399723,1718320249047,-500.0,0.00019178,2]
[329399724,1718320249064,-464.87250935,0.00019178,2]
[329399725,1718320249094,-156.17522039,0.00019178,2]
[329399726,1718320249143,-326.68609521,0.00019178,2]
[329399727,1718320249182,-436.05057219,0.00019178,2]
[329399728,1718320249230,-886.0,0.000192,2]
[329399729,1718320249256,-1000.0,0.000192,2]
[329399730,1718320249301,-3376.25,0.00019274,2]
[329399731,1718320249339,-1066.0,0.00019294,2]
[329399732,1718320249350,-250.0,0.00019322,2]
[329399733,1718320249363,-23870.0,0.00019322,2]
[329399734,1718320249385,-463.07,0.00019542,2]
[329399735,1718320249414,-1000.0,0.00019667,2]
[329399736,1718320249440,-477.28248684,0.00019823,2]
[329399737,1718320249459,-885.21,0.00019998,2]
[329399738,1718320249476,-6267.29487457,0.0002,2]
[329399745,1718320249579,-155.0,0.0002,2]
[329399747,1718320249596,-155.0,0.0002,2]
[329399749,1718320249611,-155.0,0.0002,2]
[329399751,1718320249622,-10060.42847703,0.0002,2]
[329399753,1718320249649,-226.76270483,0.000201,2]
[329399755,1718320249662,-190.1,0.00020199,2]
[329399756,1718320249674,-3280.0,0.000203,2]
[329399758,1718320249687,-667.0,0.000203,2]
[329399759,1718320249714,-344.12554842,0.00020873,2]
[329399762,1718320249729,-151.6,0.00020932,2]
[329399764,1718320249754,-172.39,0.00020933,2]
[329399766,1718320249794,-885.21,0.0002095,2]
[329399769,1718320249807,-1250.0,0.00021,2]
[329399771,1718320249823,-477.28248684,0.00021262,2]
[329399773,1718320249848,-500.0,0.00021475,2]
[329399775,1718320249866,-500.0,0.00021475,2]
[329399777,1718320249881,-500.0,0.00021475,2]
[329399778,1718320249905,-500.0,0.00021475,2]
[329399780,1718320249923,-500.0,0.00021475,2]
[329399782,1718320249934,-500.0,0.00021475,2]
[329399784,1718320249946,-500.0,0.00021475,2]
[329399785,1718320249958,-500.0,0.00021475,2]
[329399787,1718320249968,-500.0,0.00021475,2]
[329399789,1718320249979,-500.0,0.00021475,2]
[329399791,1718320249994,-500.0,0.00021475,2]
[329399793,1718320250009,-500.0,0.00021475,2]
[329399795,1718320250027,-500.0,0.00021475,2]
[329399797,1718320250052,-500.0,0.00021475,2]
[329399799,1718320250064,-500.0,0.00021475,2]
[329399800,1718320250074,-500.0,0.00021475,2]
[329399802,1718320250085,-500.0,0.00021475,2]
[329399805,1718320250097,-500.0,0.00021475,2]
[329399807,1718320250114,-500.0,0.00021475,2]
[329399808,1718320250137,-500.0,0.00021475,2]
[329399810,1718320250153,-500.0,0.00021475,2]
[329399811,1718320250169,-500.0,0.00021475,2]
[329399813,1718320250192,-500.0,0.00021475,2]
[329399815,1718320250236,-570.72379164,0.00021482,2]
[329399817,1718320250250,-463.07,0.00021806,2]
[329399819,1718320250277,-174.42184083,0.000219,2]
[329399821,1718320250300,-318.14581888,0.000219,2]
[329399822,1718320250321,-885.21,0.00021902,2]
[329399824,1718320250333,-719.93,0.00021918,2]
[329399826,1718320250366,-250.0,0.00021918,2]
[329399827,1718320250400,-790.20472017,0.00022,2]
[329399828,1718320250414,-3376.25,0.00022014,2]
[329399829,1718320250430,-1000.0,0.00022125,2]
[329399830,1718320250456,-1066.0,0.00022294,2]
[329399831,1718320250477,-2100.0,0.00022678,2]
[329399832,1718320250488,-477.28248684,0.00022702,2]
[329399833,1718320250517,-885.21,0.00022855,2]
[329399834,1718320250550,-155.0,0.00023,2]
[329399835,1718320250576,-190.1,0.00023533,2]
[329399836,1718320250616,-1200.0,0.000238,8]
[329399837,1718320250636,-1600.0,0.000239,8]
[329399838,1718320250659,-160.0,0.00024,2]
[329399839,1718320250671,-2453.21042,0.00024,2]
[329399840,1718320250725,-219.61,0.00024,2]
[329399841,1718320250737,-570.72379164,0.00024009,2]
[329399842,1718320250774,-8301.6727,0.00024009,2]
[329399843,1718320250809,-273.3107,0.00024009,2]
[329399844,1718320250837,-7500.0,0.00024009,2]
[329399845,1718320250865,-3531.82936404,0.0002401,2]
[329399846,1718320250888,-632.58212786,0.0002401,2]
[329399847,1718320250899,-463.07,0.0002407,2]
[329399848,1718320250915,-152.2,0.00024099,2]
[329399849,1718320250945,-199.53,0.00024104,2]
[329399850,1718320250961,-1317.46823882,0.00024107,2]
[329399851,1718320250988,-200.0,0.00024108,2]
[329399852,1718320251007,-1629.31781472,0.00024108,2]
[329399853,1718320251035,-342.30030242,0.00024108,2]
[329399854,1718320251058,-150.0,0.00024108,10]
[329399855,1718320251092,-500.0,0.00024109,2]
[329399856,1718320251119,-500.0,0.00024109,2]
[329399857,1718320251153,-500.0,0.00024109,2]
[329399858,1718320251192,-500.0,0.00024109,2]
[329399859,1718320251219,-500.0,0.00024109,2]
[329399860,1718320251289,-500.0,0.00024109,2]
[329399861,1718320251316,-500.0,0.00024109,2]
[329399862,1718320251333,-500.0,0.00024109,2]
[329399863,1718320251346,-500.0,0.00024109,2]
[329399864,1718320251358,-500.0,0.00024109,2]
[329399865,1718320251404,-588.14299399,0.00024109,2]
[329399866,1718320251416,-500.0,0.00024109,2]
[329399867,1718320251431,-500.0,0.00024109,2]
[329399868,1718320251449,-500.0,0.00024109,2]
[329399869,1718320251470,-501.76299064,0.00024109,2]
[329399870,1718320251484,-500.0,0.00024109,2]
[329399871,1718320251515,-500.90575513,0.00024109,2]
[329399872,1718320251557,-500.0,0.00024109,2]
[329399873,1718320251568,-500.0,0.00024109,2]
[329399874,1718320251604,-500.0,0.00024109,2]
[329399875,1718320251615,-500.0,0.00024109,2]
[329399876,1718320251632,-498.93185717,0.00024109,2]
[329399877,1718320251664,-499.25719064,0.00024109,2]
[329399878,1718320251720,-501.79927568,0.00024109,2]
[329399879,1718320251744,-500.0,0.00024109,2]
[329399880,1718320251754,-221.19890693,0.00024109,2]
[329399881,1718320251767,-195.24354536,0.00024109,2]
[329399882,1718320251785,-221.59382924,0.00024109,2]
[329399883,1718320251796,-500.0,0.00024109,2]
[329399884,1718320251831,-500.0,0.00024109,2]
[329399885,1718320251912,-500.0,0.00024109,2]
[329399886,1718320251925,-500.0,0.00024109,2]
[329399887,1718320251936,-500.0,0.00024109,2]
[329399888,1718320251948,-509.33184038,0.00024109,2]
[329399889,1718320251973,-500.0,0.00024109,2]
[329399890,1718320251988,-500.0,0.00024109,2]
[329399891,1718320252002,-500.0,0.00024109,2]
[329399892,1718320252026,-499.05576376,0.00024109,2]
[329399893,1718320252040,-500.0,0.00024109,2]
[329399894,1718320252060,-500.0,0.00024109,2]
[329399895,1718320252088,-500.0,0.00024109,2]
[329399896,1718320252102,-500.0,0.00024109,2]
[329399897,1718320252140,-500.0,0.00024109,2]
[329399898,1718320252172,-500.0,0.00024109,2]
[329399899,1718320252198,-500.0,0.00024109,2]
[329399900,1718320252234,-500.0,0.00024109,2]
[329399901,1718320252285,-500.0,0.00024109,2]
[329399902,1718320252304,-509.06553633,0.00024109,2]
[329399903,1718320252328,-500.0,0.00024109,2]
[329399904,1718320252353,-500.0,0.00024109,2]
[329399905,1718320252377,-500.0,0.00024109,2]
[329399906,1718320252397,-500.0,0.00024109,2]
[329399907,1718320252418,-500.0,0.00024109,2]
[329399908,1718320252442,-500.43061371,0.00024109,2]
[329399909,1718320252452,-500.0,0.00024109,2]
[329399910,1718320252483,-500.0,0.00024109,2]
[329399911,1718320252505,-500.0,0.00024109,2]
[329399912,1718320252516,-500.0,0.00024109,2]
[329399913,1718320252529,-500.0,0.00024109,2]
[329399914,1718320252564,-497.57258311,0.00024109,2]
[329399915,1718320252575,-623.02497351,0.00024109,2]
[329399916,1718320252602,-500.0,0.00024109,2]
[329399917,1718320252624,-500.0,0.00024109,2]
[329399918,1718320252646,-500.0,0.00024109,2]
[329399919,1718320252658,-500.0,0.00024109,2]
[329399920,1718320252668,-500.0,0.00024109,2]
[329399921,1718320252681,-500.0,0.00024109,2]
[329399922,1718320252691,-500.0,0.00024109,2]
[329399923,1718320252702,-500.0,0.00024109,2]
[329399924,1718320252714,-500.0,0.00024109,2]
[329399925,1718320252724,-500.0,0.00024109,2]
[329399926,1718320252748,-500.0,0.00024109,2]
[329399927,1718320252772,-500.0,0.00024109,2]
[329399928,1718320252796,-500.0,0.00024109,2]
[329399929,1718320252807,-500.0,0.00024109,2]
[329399930,1718320252884,-500.0,0.00024109,2]
[329399931,1718320252895,-500.0,0.00024109,2]
[329399932,1718320252905,-500.0,0.00024109,2]
[329399933,1718320252916,-500.0,0.00024109,2]
[329399934,1718320252926,-500.0,0.00024109,2]
[329399935,1718320252937,-500.0,0.00024109,2]
[329399936,1718320252950,-500.0,0.00024109,2]
[329399937,1718320252960,-500.0,0.00024109,2]
[329399938,1718320253013,-500.0,0.00024109,2]
[329399939,1718320253027,-500.0,0.00024109,2]
[329399940,1718320253053,-500.0,0.00024109,2]
[329399941,1718320253072,-500.0,0.00024109,2]
[329399942,1718320253096,-500.0,0.00024109,2]
[329399943,1718320253126,-500.0,0.00024109,2]
[329399944,1718320253137,-500.0,0.00024109,2]
[329399945,1718320253160,-500.0,0.00024109,2]
[329399946,1718320253177,-524.65754737,0.00024109,2]
[329399947,1718320253188,-500.0,0.00024109,2]
[329399948,1718320253236,-500.0,0.00024109,2]
[329399949,1718320253258,-500.0,0.00024109,2]
[329399950,1718320253278,-500.0,0.00024109,2]
[329399951,1718320253297,-503.38846773,0.00024109,2]
[329399952,1718320253330,-500.0,0.00024109,2]
[329399953,1718320253355,-500.0,0.00024109,2]
[329399954,1718320253404,-500.0,0.00024109,2]
[329399955,1718320253442,-500.0,0.00024109,2]
[329399956,1718320253458,-500.0,0.00024109,2]
[329399957,1718320253480,-500.0,0.00024109,2]
[329399958,1718320253519,-500.0,0.00024109,2]
[329399959,1718320253537,-500.0,0.00024109,2]
[329399960,1718320253573,-500.0,0.00024109,2]
[329399961,1718320253606,-514.68119198,0.00024109,2]
[329399962,1718320253620,-500.0,0.00024109,2]
[329399963,1718320253637,-500.0,0.00024109,2]
[329399964,1718320253648,-500.0,0.00024109,2]
[329399965,1718320253664,-500.0,0.00024109,2]
[329399966,1718320253688,-500.0,0.00024109,2]
[329399967,1718320253743,-500.0,0.00024109,2]
[329399968,1718320253768,-500.0,0.00024109,2]
[329399969,1718320253782,-500.0,0.00024109,2]
[329399970,1718320253793,-237.18035711,0.00024109,2]
[329399971,1718320253817,-500.0,0.00024109,2]
[329399972,1718320253832,-500.0,0.00024109,2]
[329399973,1718320253847,-500.0,0.00024109,2]
[329399974,1718320253864,-500.0,0.00024109,2]
[329399975,1718320253883,-500.0,0.00024109,2]
[329399976,1718320253931,-500.0,0.00024109,2]
[329399977,1718320253960,-500.0,0.00024109,2]
[329399978,1718320253994,-168.07773832,0.00024109,2]
[329399979,1718320254009,-500.0,0.00024109,2]
[329399980,1718320254031,-500.0,0.00024109,2]
[329399981,1718320254043,-500.0,0.00024109,2]
[329399982,1718320254078,-500.0,0.00024109,2]
[329399983,1718320254092,-500.0,0.00024109,2]
[329399984,1718320254113,-500.0,0.00024109,2]
[329399985,1718320254137,-500.0,0.00024109,2]
[329399986,1718320254192,-500.0,0.00024109,2]
[329399987,1718320254244,-500.0,0.00024109,2]
[329399988,1718320254261,-500.0,0.00024109,2]
[329399989,1718320254292,-230.86213307,0.00024109,2]
[329399990,1718320254320,-500.0,0.00024109,2]
[329399991,1718320254336,-500.0,0.00024109,2]
[329399992,1718320254348,-486.09192115,0.00024109,2]
[329399993,1718320254366,-500.0,0.00024109,2]
[329399994,1718320254379,-625.8,0.00024109,2]
[329399995,1718320254404,-500.0,0.00024109,2]
[329399996,1718320254425,-500.0,0.00024109,2]
[329399997,1718320254438,-500.0,0.00024109,2]
[329399998,1718320254461,-500.0,0.00024109,2]
[329399999,1718320254529,-500.0,0.00024109,2]
[329400000,1718320254544,-500.0,0.00024109,2]
[329400001,1718320254574,-592.4194176,0.00024109,2]
[329400002,1718320254609,-500.0,0.00024109,2]
[329400003,1718320254651,-282.7336212,0.00024109,2]
[329400004,1718320254673,-574.37493723,0.00024109,2]
[329400005,1718320254696,-500.0,0.00024109,2]
[329400006,1718320254760,-730.17,0.00024109,2]
[329400007,1718320254805,-515.71637087,0.00024109,2]
[329400008,1718320254844,-500.0,0.00024109,2]
[329400009,1718320254856,-500.0,0.00024109,2]
[329400010,1718320254882,-500.0,0.00024109,2]
[329400011,1718320254904,-500.0,0.00024109,2]
[329400012,1718320254935,-500.0,0.00024109,2]
[329400013,1718320254992,-500.0,0.00024109,2]
[329400014,1718320255043,-500.0,0.00024109,2]
[329400015,1718320255061,-500.0,0.00024109,2]
[329400016,1718320255093,-250.0,0.00024109,2]
[329400017,1718320255148,-500.0,0.00024109,2]
[329400018,1718320255192,-500.0,0.00024109,2]
[329400019,1718320255217,-500.0,0.00024109,2]
[329400020,1718320255243,-500.0,0.00024109,2]
[329400021,1718320255255,-500.0,0.00024109,2]
[329400022,1718320255276,-500.0,0.00024109,2]
[329400023,1718320255289,-500.0,0.00024109,2]
[329400024,1718320255331,-500.0,0.00024109,2]
[329400025,1718320255365,-622.47,0.00024109,2]
[329400026,1718320255389,-884.26,0.00024109,2]
[329400027,1718320255444,-500.0,0.00024109,2]
[329400028,1718320255479,-500.0,0.00024109,2]
[329400029,1718320255497,-500.0,0.00024109,2]
[329400030,1718320255529,-500.0,0.00024109,2]
[329400031,1718320255564,-500.0,0.00024109,2]
[329400032,1718320255589,-510.59707667,0.00024109,2]
[329400033,1718320255601,-500.0,0.00024109,2]
[329400034,1718320255622,-500.0,0.00024109,2]
[329400035,1718320255640,-500.0,0.00024109,2]
[329400036,1718320255652,-500.0,0.00024109,2]
[329400037,1718320255684,-1540.73,0.00024109,2]
[329400038,1718320255696,-500.0,0.00024109,2]
[329400039,1718320255744,-500.0,0.00024109,2]
[329400040,1718320255788,-500.0,0.00024109,2]
[329400041,1718320255801,-500.0,0.00024109,2]
[329400042,1718320255814,-1000.0,0.00024109,2]
[329400043,1718320255827,-500.0,0.00024109,2]
[329400044,1718320255868,-500.0,0.00024109,2]
[329400045,1718320255882,-500.0,0.00024109,2]
[329400046,1718320255894,-500.0,0.00024109,2]
[329400047,1718320255906,-500.0,0.00024109,2]
[329400048,1718320255918,-500.0,0.00024109,2]
[329400049,1718320255930,-500.0,0.00024109,2]
[329400050,1718320255942,-514.05569392,0.00024109,2]
[329400051,1718320255984,-500.0,0.00024109,2]
[329400052,1718320256004,-500.0,0.00024109,2]
[329400053,1718320256024,-468.65641271,0.00024109,2]
[329400054,1718320256043,-500.0,0.00024109,2]
[329400055,1718320256072,-166.11984636,0.00024109,2]
[329400056,1718320256102,-500.0,0.00024109,2]
[329400057,1718320256123,-585.83292572,0.00024109,2]
[329400058,1718320256134,-500.0,0.00024109,2]
[329400059,1718320256145,-500.0,0.00024109,2]
[329400060,1718320256162,-500.0,0.00024109,2]
[329400061,1718320256188,-500.0,0.00024109,2]
[329400062,1718320256199,-500.0,0.00024109,2]
[329400063,1718320256211,-500.0,0.00024109,2]
[329400064,1718320256222,-500.0,0.00024109,2]
[329400065,1718320256235,-500.0,0.00024109,2]
[329400066,1718320256248,-500.0,0.00024109,2]
[329400067,1718320256258,-414.14319067,0.00024109,2]
[329400068,1718320256281,-500.0,0.00024109,2]
[329400069,1718320256294,-500.0,0.00024109,2]
[329400070,1718320256340,-500.0,0.00024109,2]
[329400071,1718320256365,-500.0,0.00024109,2]
[329400072,1718320256379,-500.0,0.00024109,2]
[329400073,1718320256399,-500.0,0.00024109,2]
[329400074,1718320256451,-500.0,0.00024109,2]
[329400075,1718320256498,-500.0,0.00024109,2]
[329400076,1718320256509,-500.0,0.00024109,2]
[329400077,1718320256528,-500.0,0.00024109,2]
[329400078,1718320256542,-500.0,0.00024109,2]
[329400079,1718320256560,-500.0,0.00024109,2]
[329400080,1718320256596,-500.0,0.00024109,2]
[329400081,1718320256620,-589.45575791,0.00024109,2]
[329400082,1718320256641,-500.0,0.00024109,2]
[329400083,1718320256665,-500.0,0.00024109,2]
[329400084,1718320256676,-500.0,0.00024109,2]
[329400085,1718320256687,-500.0,0.00024109,2]
[329400086,1718320256722,-500.0,0.00024109,2]
[329400087,1718320256736,-624.17,0.00024109,2]
[329400088,1718320256761,-500.0,0.00024109,2]
[329400089,1718320256781,-500.0,0.00024109,2]
[329400090,1718320256793,-500.0,0.00024109,2]
[329400091,1718320256804,-500.0,0.00024109,2]
[329400092,1718320256837,-500.0,0.00024109,2]
[329400093,1718320256873,-500.0,0.00024109,2]
[329400094,1718320256897,-500.0,0.00024109,2]
[329400095,1718320256910,-547.64,0.00024109,2]
[329400096,1718320256937,-529.08866166,0.00024109,2]
[329400097,1718320256969,-500.0,0.00024109,2]
[329400098,1718320256980,-302.09131441,0.00024109,2]
[329400099,1718320257010,-500.0,0.00024109,2]
[329400100,1718320257032,-500.0,0.00024109,2]
[329400101,1718320257064,-500.0,0.00024109,2]
[329400102,1718320257076,-500.0,0.00024109,2]
[329400103,1718320257089,-500.0,0.00024109,2]
[329400104,1718320257105,-501.77794427,0.00024109,2]
[329400105,1718320257118,-500.0,0.00024109,2]
[329400106,1718320257131,-500.0,0.00024109,2]
[329400107,1718320257142,-500.0,0.00024109,2]
[329400108,1718320257154,-500.0,0.00024109,2]
[329400109,1718320257177,-500.0,0.00024109,2]
[329400110,1718320257218,-500.0,0.00024109,2]
[329400111,1718320257246,-500.0,0.00024109,2]
[329400112,1718320257270,-502.86937357,0.00024109,2]
[329400113,1718320257297,-500.0,0.00024109,2]
[329400114,1718320257319,-500.0,0.00024109,2]
[329400115,1718320257332,-500.0,0.00024109,2]
[329400116,1718320257349,-502.75656585,0.00024109,2]
[329400117,1718320257377,-500.0,0.00024109,2]
[329400118,1718320257402,-500.0,0.00024109,2]
[329400119,1718320257415,-500.0,0.00024109,2]
[329400120,1718320257448,-500.0,0.00024109,2]
[329400121,1718320257459,-500.0,0.00024109,2]
[329400122,1718320257508,-500.0,0.00024109,2]
[329400123,1718320257521,-500.0,0.00024109,2]
[329400124,1718320257545,-500.0,0.00024109,2]
[329400125,1718320257567,-500.0,0.00024109,2]
[329400126,1718320257578,-790.29,0.00024109,2]
[329400127,1718320257618,-259.54107948,0.00024109,2]
[329400128,1718320257641,-500.0,0.00024109,2]
[329400129,1718320257663,-500.0,0.00024109,2]
[329400130,1718320257678,-500.0,0.00024109,2]
[329400131,1718320257689,-500.0,0.00024109,2]
[329400132,1718320257700,-500.0,0.00024109,2]
[329400133,1718320257723,-500.0,0.00024109,2]
[329400134,1718320257736,-500.0,0.00024109,2]
[329400135,1718320257759,-500.0,0.00024109,2]
[329400136,1718320257775,-500.0,0.00024109,2]
[329400137,1718320257821,-500.0,0.00024109,2]
[329400138,1718320257831,-500.0,0.00024109,2]
[329400139,1718320257884,-1178.26,0.00024109,2]
[329400140,1718320257895,-333.56942583,0.00024109,2]
[329400141,1718320257929,-500.0,0.00024109,2]
[329400142,1718320257949,-500.0,0.00024109,2]
[329400143,1718320257973,-500.0,0.00024109,2]
[329400144,1718320257985,-500.0,0.00024109,2]
[329400145,1718320257995,-349.07703733,0.00024109,2]
[329400146,1718320258016,-500.0,0.00024109,2]
[329400147,1718320258030,-508.07,0.00024109,2]
[329400148,1718320258042,-509.01301662,0.00024109,2]
[329400149,1718320258053,-500.0,0.00024109,2]
[329400150,1718320258075,-500.0,0.00024109,2]
[329400151,1718320258086,-527.0017385,0.00024109,2]
[329400152,1718320258121,-500.18770644,0.00024109,2]
[329400153,1718320258131,-500.0,0.00024109,2]
[329400154,1718320258142,-500.0,0.00024109,2]
[329400155,1718320258168,-500.0,0.00024109,2]
[329400156,1718320258187,-500.0,0.00024109,2]
[329400157,1718320258198,-500.0,0.00024109,2]
[329400158,1718320258217,-500.0,0.00024109,2]
[329400159,1718320258228,-500.0,0.00024109,2]
[329400160,1718320258259,-691.85,0.00024109,2]
[329400161,1718320258276,-500.0,0.00024109,2]
[329400162,1718320258289,-500.0,0.00024109,2]
[329400163,1718320258299,-500.0,0.00024109,2]
[329400164,1718320258310,-153.31790474,0.00024109,2]
[329400165,1718320258320,-500.0,0.00024109,2]
[329400166,1718320258346,-500.0,0.00024109,2]
[329400167,1718320258357,-695.78,0.00024109,2]
[329400168,1718320258368,-500.0,0.00024109,2]
[329400169,1718320258379,-500.0,0.00024109,2]
[329400170,1718320258398,-500.0,0.00024109,2]
[329400171,1718320258413,-500.0,0.00024109,2]
[329400172,1718320258429,-500.0,0.00024109,2]
[329400173,1718320258441,-500.0,0.00024109,2]
[329400174,1718320258453,-500.0,0.00024109,2]
[329400175,1718320258476,-500.0,0.00024109,2]
[329400176,1718320258504,-500.0,0.00024109,2]
[329400177,1718320258525,-798.99,0.00024109,2]
[329400178,1718320258536,-500.0,0.00024109,2]
[329400179,1718320258547,-500.0,0.00024109,2]
[329400180,1718320258559,-500.0,0.00024109,2]
[329400181,1718320258582,-500.0,0.00024109,2]
[329400182,1718320258616,-321.2583523,0.00024109,2]
[329400183,1718320258638,-500.0,0.00024109,2]
[329400184,1718320258650,-500.0,0.00024109,2]
[329400185,1718320258700,-500.0,0.00024109,2]
[329400186,1718320258711,-500.0,0.00024109,2]
[329400187,1718320258742,-500.0,0.00024109,2]
[329400188,1718320258756,-500.0,0.00024109,2]
[329400189,1718320258770,-500.0,0.00024109,2]
[329400190,1718320258782,-500.0,0.00024109,2]
[329400191,1718320258793,-500.0,0.00024109,2]
[329400192,1718320258811,-570.01,0.00024109,2]
[329400193,1718320258824,-500.0,0.00024109,2]
[329400194,1718320258835,-500.0,0.00024109,2]
[329400195,1718320258848,-500.0,0.00024109,2]
[329400196,1718320258858,-500.0,0.00024109,2]
[329400197,1718320258868,-500.0,0.00024109,2]
[329400198,1718320258878,-508.76703015,0.00024109,2]
[329400199,1718320258890,-500.0,0.00024109,2]
[329400200,1718320258905,-575.32,0.00024109,2]
[329400201,1718320258917,-500.0,0.00024109,2]
[329400202,1718320258936,-500.0,0.00024109,2]
[329400203,1718320258964,-500.0,0.00024109,2]
[329400204,1718320258975,-20000.0,0.00024109,2]